fUST/lending_fUST_20250228
["ID","MTS","AMOUNT","RATE_DAILY","PERIOD"]
[354838228,1740730249264,-500.0,0.00547945,120]
[354838229,1740730249273,-500.0,0.00547945,2]
[354838230,1740730249283,-167.62,0.00547945,120]
[354838231,1740730249292,-500.0,0.00547945,120]
[354838232,1740730249302,-500.0,0.00547945,120]
[354838233,1740730249311,-500.0,0.00547945,120]
[354838234,1740730249323,-500.0,0.00547945,120]
[354838235,1740730249333,-500.0,0.00547945,120]
[354838236,1740730249343,-500.0,0.00547945,120]
[354838237,1740730249352,-500.0,0.00547945,120]
[354838238,1740730249362,-254.96,0.00547945,120]
[354838239,1740730249373,-500.0,0.00547945,120]
[354838240,1740730249382,-500.0,0.00547945,120]
[354838241,1740730249391,-500.0,0.00547945,120]
[354838242,1740730249401,-500.0,0.00547945,120]
[354838243,1740730249410,-500.0,0.00547945,120]
[354838244,1740730249420,-500.0,0.00547945,120]
[354838245,1740730249430,-500.0,0.00547945,120]
[354838246,1740730249442,-500.0,0.00547945,120]
[354838247,1740730249451,-500.0,0.00547945,120]
[354838248,1740730249461,-500.0,0.00547945,120]
[354838249,1740730249470,-500.0,0.00547945,120]
[354838250,1740730249480,-229.80951028,0.00547945,120]
[354838251,1740730249489,-500.0,0.00547945,120]
[354838252,1740730249499,-500.0,0.00547945,120]
[354838253,1740730249509,-500.0,0.00547945,120]
[354838254,1740730249522,-500.0,0.00547945,120]
[354838255,1740730249532,-500.0,0.00547945,120]
[354838256,1740730249541,-500.0,0.00547945,120]
[354838257,1740730249551,-500.0,0.00547945,120]
[354838258,1740730249561,-500.0,0.00547945,120]
[354838259,1740730249572,-500.0,0.00547945,120]
[354838260,1740730249582,-500.0,0.00547945,120]
[354838261,1740730249592,-260.77,0.00547945,120]
[354838262,1740730249602,-151.95,0.00547945,120]
[354838263,1740730249612,-500.90040227,0.00547945,120]
[354838264,1740730249621,-500.0,0.00547945,120]
[354838265,1740730249632,-945.43,0.00547945,7]
[354838266,1740730249641,-945.43,0.00547945,7]
[354838267,1740730249653,-945.43,0.00547945,7]
[354838268,1740730249662,-945.43,0.00547945,7]
[354838269,1740730249672,-945.43,0.00547945,7]
[354838270,1740730249683,-945.43,0.00547945,7]
[354838271,1740730249693,-945.43,0.00547945,7]
[354838272,1740730249703,-945.43,0.00547945,7]
[354838273,1740730249712,-945.43,0.00547945,7]
[354838274,1740730249723,-945.43,0.00547945,7]
[354838275,1740730249735,-945.43,0.00547945,7]
[354838276,1740730249745,-945.43,0.00547945,7]
[354838277,1740730249755,-945.43,0.00547945,7]
[354838278,1740730249766,-945.43,0.00547945,7]
[354838279,1740730249776,-945.43,0.00547945,7]
[354838280,1740730249786,-500.0,0.00547945,120]
[354838281,1740730249799,-414.00844562,0.00547945,120]
[354838282,1740730249809,-945.43,0.00547945,7]
[354838283,1740730249821,-945.43,0.00547945,7]
[354838284,1740730249831,-945.43,0.00547945,7]
[354838285,1740730249841,-945.43,0.00547945,7]
[354838286,1740730249851,-945.43,0.00547945,7]
[354838287,1740730249860,-500.0,0.00547945,120]
[354838288,1740730249870,-945.43,0.00547945,7]
[354838289,1740730249880,-945.43,0.00547945,7]
[354838290,1740730249890,-501.71662557,0.00547945,120]
[354838291,1740730249900,-945.43,0.00547945,7]
[354838292,1740730249910,-945.53,0.00547945,7]
[354838293,1740730249923,-421.14089042,0.00547945,120]
[354838294,1740730249933,-500.0,0.00547945,120]
[354838295,1740730249942,-608.93,0.00547945,120]
[354838296,1740730249952,-500.0,0.00547945,120]
[354838297,1740730249962,-500.0,0.00547945,120]
[354838298,1740730249971,-500.0,0.00547945,120]
[354838299,1740730249981,-500.0,0.00547945,120]
[354838300,1740730249990,-500.0,0.00547945,120]
[354838301,1740730249999,-507.96977579,0.00547945,120]
[354838302,1740730250010,-500.0,0.00547945,120]
[354838303,1740730250020,-500.0,0.00547945,120]
[354838304,1740730250029,-500.0,0.00547945,120]
[354838305,1740730250039,-500.0,0.00547945,120]
[354838306,1740730250050,-500.0,0.00547945,120]
[354838307,1740730250060,-500.0,0.00547945,120]
[354838308,1740730250072,-503.08916159,0.00547945,120]
[354838309,1740730250081,-500.0,0.00547945,120]
[354838310,1740730250091,-500.0,0.00547945,120]
[354838311,1740730250100,-500.0,0.00547945,120]
[354838312,1740730250110,-501.57848578,0.00547945,120]
[354838313,1740730250120,-616.52,0.00547945,120]
[354838314,1740730250129,-500.0,0.00547945,120]
[354838315,1740730250139,-500.51408846,0.00547945,120]
[354838316,1740730250153,-501.31073455,0.00547945,120]
[354838317,1740730250162,-500.0,0.00547945,120]
[354838318,1740730250171,-500.0,0.00547945,120]
[354838319,1740730250181,-500.0,0.00547945,120]
[354838320,1740730250190,-314.64397667,0.00547945,120]
[354838321,1740730250200,-500.0,0.00547945,120]
[354838322,1740730250209,-500.0,0.00547945,120]
[354838323,1740730250219,-500.0,0.00547945,120]
[354838324,1740730250229,-583.38,0.00547945,120]
[354838325,1740730250238,-500.0,0.00547945,120]
[354838326,1740730250248,-501.98455002,0.00547945,120]
[354838327,1740730250257,-554.78198561,0.00547945,120]
[354838328,1740730250266,-500.0,0.00547945,120]
[354838329,1740730250275,-500.0,0.00547945,120]
[354838330,1740730250285,-500.0,0.00547945,120]
[354838331,1740730250294,-503.56735553,0.00547945,120]
[354838332,1740730250303,-499.67202088,0.00547945,120]
[354838333,1740730250314,-500.0,0.00547945,120]
[354838334,1740730250323,-500.0,0.00547945,120]
[354838335,1740730250332,-500.0,0.00547945,120]
[354838336,1740730250342,-320.48,0.00547945,120]
[354838337,1740730250351,-500.0,0.00547945,120]
[354838338,1740730250361,-500.0,0.00547945,120]
[354838339,1740730250372,-500.0,0.00547945,120]
[354838340,1740730250382,-500.0,0.00547945,120]
[354838341,1740730250391,-500.0,0.00547945,120]
[354838342,1740730250401,-500.0,0.00547945,120]
[354838343,1740730250411,-500.0,0.00547945,120]
[354838344,1740730250421,-501.35000245,0.00547945,120]
[354838345,1740730250430,-500.0,0.00547945,120]
[354838346,1740730250440,-500.0,0.00547945,120]
[354838347,1740730250449,-500.0,0.00547945,7]
[354838348,1740730250459,-500.0,0.00547945,120]
[354838349,1740730250468,-500.0,0.00547945,120]
[354838350,1740730250477,-500.0,0.00547945,120]
[354838351,1740730250486,-500.0,0.00547945,120]
[354838352,1740730250496,-501.74411179,0.00547945,120]
[354838353,1740730250506,-500.0,0.00547945,120]
[354838354,1740730250515,-500.0,0.00547945,120]
[354838355,1740730250525,-500.0,0.00547945,120]
[354838356,1740730250534,-500.0,0.00547945,120]
[354838357,1740730250543,-647.51,0.00547945,120]
[354838358,1740730250553,-500.0,0.00547945,120]
[354838359,1740730250563,-500.0,0.00547945,21]
[354838360,1740730250574,-500.0,0.00547945,120]
[354838361,1740730250584,-500.0,0.00547945,120]
[354838362,1740730250593,-415.76,0.00547945,120]
[354838363,1740730250603,-500.0,0.00547945,120]
[354838364,1740730250612,-500.0,0.00547945,120]
[354838365,1740730250625,-500.0,0.00547945,120]
[354838366,1740730250634,-500.0,0.00547945,120]
[354838367,1740730250645,-500.0,0.00547945,120]
[354838368,1740730250654,-500.0,0.00547945,120]
[354838369,1740730250664,-500.0,0.00547945,120]
[354838370,1740730250674,-500.0,0.00547945,120]
[354838371,1740730250685,-500.0,0.00547945,120]
[354838372,1740730250697,-6618.33,0.00547945,120]
[354838373,1740730250706,-500.0,0.00547945,120]
[354838374,1740730250715,-6618.33,0.00547945,120]
[354838375,1740730250726,-500.0,0.00547945,120]
[354838376,1740730250737,-401.69165753,0.00547945,120]
[354838377,1740730250746,-6618.33,0.00547945,120]
[354838378,1740730250756,-607.64,0.00547945,120]
[354838379,1740730250766,-6618.33,0.00547945,120]
[354838380,1740730250776,-6618.33,0.00547945,120]
[354838381,1740730250785,-6618.33,0.00547945,120]
[354838382,1740730250794,-6618.33,0.00547945,120]
[354838383,1740730250804,-6618.33,0.00547945,120]
[354838384,1740730250815,-6618.33,0.00547945,120]
[354838385,1740730250824,-6618.33,0.00547945,120]
[354838386,1740730250833,-6618.33,0.00547945,120]
[354838387,1740730250843,-6618.33,0.00547945,120]
[354838388,1740730250852,-6618.33,0.00547945,120]
[354838389,1740730250861,-500.0,0.00547945,120]
[354838390,1740730250871,-6618.33,0.00547945,120]
[354838391,1740730250880,-6618.33,0.00547945,120]
[354838392,1740730250890,-6618.33,0.00547945,120]
[354838393,1740730250900,-6618.33,0.00547945,120]
[354838394,1740730250909,-500.0,0.00547945,120]
[354838395,1740730250918,-6618.33,0.00547945,120]
[354838396,1740730250928,-500.0,0.00547945,120]
[354838397,1740730250937,-6618.33,0.00547945,120]
[354838398,1740730250946,-500.0,0.00547945,120]
[354838399,1740730250956,-6618.33,0.00547945,120]
[354838400,1740730250965,-500.0,0.00547945,120]
[354838401,1740730250975,-6618.33,0.00547945,120]
[354838402,1740730250984,-500.0,0.00547945,120]
[354838403,1740730250995,-6618.33,0.00547945,120]
[354838404,1740730251005,-500.0,0.00547945,120]
[354838405,1740730251014,-500.0,0.00547945,120]
[354838406,1740730251024,-500.0,0.00547945,120]
[354838407,1740730251033,-6618.33,0.00547945,120]
[354838408,1740730251042,-189.92,0.00547945,120]
[354838409,1740730251052,-6618.49069091,0.00547945,120]
[354838410,1740730251061,-500.0,0.00547945,120]
[354838411,1740730251072,-176.37452914,0.00547945,120]
[354838412,1740730251082,-347.86200176,0.00547945,120]
[354838413,1740730251091,-511.02588632,0.00547945,120]
[354838414,1740730251101,-500.0,0.00547945,120]
[354838415,1740730251110,-500.0,0.00547945,120]
[354838416,1740730251119,-500.0,0.00547945,120]
[354838417,1740730251129,-500.0,0.00547945,120]
[354838418,1740730251142,-500.0,0.00547945,120]
[354838419,1740730251151,-500.0,0.00547945,120]
[354838420,1740730251167,-273.89624262,0.00547945,60]
[354838421,1740730251176,-160.0,0.00548,7]
[354838422,1740730251186,-151.78,0.00548,120]
[354838423,1740730251196,-179.97,0.00548,60]
[354838424,1740730251206,-159.62,0.00548,60]
[354838425,1740730251216,-1000.0,0.00552901,120]
[354838426,1740730251226,-500.0,0.00552901,30]
[354838427,1740730251235,-500.0,0.00552901,14]
[354838428,1740730251245,-1503.20579101,0.0056292,120]
[354838429,1740730251254,-200.0,0.006,120]
[354838430,1740730251263,-179.97,0.00622,60]
[354838431,1740730251272,-151.77,0.00622,120]
[354838432,1740730251281,-20000.0,0.00643,120]
[354838433,1740730251290,-9779.5,0.0065,120]
[354838434,1740730251300,-153.0,0.00661611,120]
[354838435,1740730251310,-500.0,0.00679452,120]
[354838436,1740730251321,-151.78,0.00688,120]
[354838437,1740730251330,-200.0,0.007,120]
[354838438,1740730251339,-2000.0,0.007,120]
[354838439,1740730251348,-20000.0,0.0074,120]
[354838440,1740730251358,-20000.0,0.0074,120]
[354838441,1740730251367,-10000.0,0.007419,120]
[354838442,1740730251377,-10000.0,0.007419,120]
[354838443,1740730251387,-10000.0,0.007419,120]
[354838444,1740730251397,-10000.0,0.007419,120]
[354838445,1740730251406,-10000.0,0.007419,120]
[354838446,1740730251416,-10000.0,0.007419,120]
[354838447,1740730251426,-10000.0,0.007419,120]
[354838448,1740730251435,-10000.0,0.007419,120]
[354838449,1740730251444,-10000.0,0.007419,120]
[354838450,1740730251454,-10000.0,0.007419,120]
[354838451,1740730251464,-10000.0,0.007419,120]
[354838452,1740730251474,-10000.0,0.007419,120]
[354838453,1740730251508,-10000.0,0.007419,120]
[354838454,1740730251518,-10000.0,0.007419,120]
[354838455,1740730251527,-10000.0,0.007419,120]
[354838456,1740730251537,-20000.0,0.00743,120]
[354838457,1740730251546,-1374.51075403,0.00743,120]
[354838458,1740730251556,-64041.82766533,0.00747,120]
[354838459,1740730251567,-163.48917348,0.007486,120]
[354838460,1740730251578,-151.0,0.00748699,120]
[354838461,1740730251588,-907274.48369467,0.007487,120]
[354838462,1740730251733,-363.184603,0.00150135,2]
[354838463,1740730251762,-33.815397,0.00150135,2]
[354838464,1740730251772,-397.0,0.00153135,2]
[354838465,1740730251781,-397.0,0.00156135,2]
[354838466,1740730251790,-370.564,0.00159135,2]
[354838467,1740730251799,-5119.29402846,0.00271233,2]
[354838468,1740730251809,-170.52994568,0.00273873,28]
[354838469,1740730251819,-4691.75071664,0.00547845,8]
[354838470,1740730251828,-2258.92,0.00547935,120]
[354838471,1740730251838,-500.0,0.00547945,120]
[354838472,1740730251849,-35962.59829976,0.007487,120]
[354838473,1740730253288,-500.0,0.00648223,8]
[354838474,1740730253299,-4191.75071664,0.00648223,8]
[354838475,1740730253309,-29122.31101736,0.007487,120]
[354838499,1740730993643,-500.0,0.00072709,2]
[354838500,1740730993864,-2354.26660958,0.00072709,2]
[354838501,1740730993895,-160.0,0.00080475,2]
[354838507,1740731069081,250000.0,0.00072472,2]
[354838510,1740731139102,-181.30119476,0.00080314,120]
[354838512,1740731254103,-900.0,0.00067999,60]
[354838513,1740731254128,-480.40196287,0.00068,120]
[354838519,1740731295627,1101.37104938,0.00046,2]
[354838525,1740731303347,500.0,0.00072472,2]
[354838526,1740731303664,500.0,0.00072472,2]
[354838527,1740731311386,4119.4711771,0.00036,30]
[354838528,1740731311412,45921.17610082,0.00036,30]
[354838529,1740731313416,29377.63699323,0.00041,30]
[354838530,1740731317164,227.65272548,0.00072472,90]
[354838531,1740731317400,150.0,0.0004198,2]
[354838532,1740731317546,3788.31023661,0.00035,2]
[354838537,1740731320134,17204.62389958,0.00015,4]
[354838540,1740731320480,7212.91860956,0.00072472,2]
[354838541,1740731320775,3558.25276976,0.0004,30]
[354838542,1740731320802,100000.0,0.0004,30]
[354838543,1740731320964,103807.32928595,0.00072472,20]
[354838549,1740731345109,-400.0,0.00039999,5]
[354838550,1740731345130,-19825.81539782,0.0004,30]
[354838552,1740731347093,-8645.66914754,0.0004,30]
[354838553,1740731347280,-1896246.35672555,0.00072472,20]
[354838555,1740731350359,-17569.87677065,0.0004,30]
[354838556,1740731351089,-109787.78683927,0.0004,30]
[354838557,1740731367093,-1290.98222564,0.000535,120]
[354838558,1740731367116,-235.67759361,0.000539,13]
[354838559,1740731367137,-1095.8845982,0.00054,120]
[354838560,1740731367157,-668.09186247,0.00054,120]
[354838561,1740731367179,-2972.37,0.00054795,10]
[354838562,1740731367201,-2792.35,0.00054795,10]
[354838563,1740731367222,-26074.2973158,0.0006,120]
[354838568,1740731374131,-4998.28397238,0.0006,120]
[354838573,1740731429556,-395.05,0.0006799,3]
[354838574,1740731429587,-500.0,0.00067999,120]
[354838575,1740731429619,-500.0,0.00067999,2]
[354838576,1740731429647,-299.924,0.00067999,120]
[354838577,1740731429677,-500.0,0.00067999,2]
[354838578,1740731429708,-323.50321508,0.00067999,2]
[354838579,1740731429737,-500.0,0.00067999,2]
[354838580,1740731429766,-500.0,0.00067999,120]
[354838581,1740731429815,-500.0,0.00067999,2]
[354838582,1740731429849,-500.0,0.00067999,120]
[354838583,1740731429881,-500.0,0.00067999,2]
[354838584,1740731429913,-500.0,0.00067999,120]
[354838585,1740731429945,-500.0,0.00067999,2]
[354838586,1740731429974,-170.40187365,0.00067999,120]
[354838587,1740731430004,-500.0,0.00067999,2]
[354838588,1740731430033,-500.0,0.00067999,2]
[354838589,1740731430068,-500.0,0.00067999,2]
[354838590,1740731430096,-500.0,0.00067999,2]
[354838591,1740731430129,-500.0,0.00067999,2]
[354838592,1740731430162,-500.0,0.00067999,2]
[354838593,1740731430194,-500.0,0.00067999,2]
[354838594,1740731430226,-500.0,0.00067999,2]
[354838595,1740731430259,-340.5724564,0.00067999,2]
[354838596,1740731430289,-499.99999999,0.00067999,2]
[354838597,1740731430315,-104947.15937668,0.00068,120]
[354838598,1740731430342,-1347.60077147,0.00070317,120]
[354838599,1740731430368,-261.86946243,0.00070372,4]
[354838600,1740731430394,-460.66,0.00072462,30]
[354838601,1740731430420,-261.86946243,0.00075372,4]
[354838602,1740731430445,-18.83444134,0.00080314,120]
[354838603,1740731430471,-261.86946243,0.00080372,4]
[354838604,1740731430498,-396.0,0.00197228,2]
[354838605,1740731430523,-200.0,0.002,120]
[354838606,1740731430552,-166.66666667,0.0027377,3]
[354838607,1740731430579,-151.651304,0.00273973,120]
[354838608,1740731430607,-200.0,0.00279,120]
[354838609,1740731430634,-2969.070062,0.0028,120]
[354838610,1740731430661,-200.0,0.00287,120]
[354838611,1740731430688,-247.49299857,0.00287,2]
[354838612,1740731430714,-200.0,0.00288,120]
[354838613,1740731430742,-508.68376308,0.00289333,120]
[354838614,1740731430771,-395.05,0.00289519,60]
[354838615,1740731430960,-6000.0,0.00289529,120]
[354838616,1740731430990,-7110.9,0.00289619,60]
[354838617,1740731431018,-252.10849228,0.00289628,31]
[354838618,1740731431048,-278.26845505,0.00289628,120]
[354838619,1740731431078,-2326.96,0.00289719,120]
[354838620,1740731431107,-24900.0,0.00289729,30]
[354838621,1740731431135,-13318.96740179,0.00289729,30]
[354838622,1740731431162,-265.61,0.0029,120]
[354838623,1740731431191,-200.0,0.003,120]
[354838675,1740731436955,-166.66666667,0.00310479,3]
[354838676,1740731436965,-1902.2812181,0.00310579,120]
[354838677,1740731436975,-238.8355216,0.00355669,120]
[354838678,1740731436984,-5188.46270453,0.0039,120]
[354838679,1740731436996,-332.00099996,0.0039,120]
[354838680,1740731437024,-1263.63569551,0.0039,120]
[354838681,1740731437033,-200.0,0.004,120]
[354838682,1740731437053,-501.28766647,0.00475255,30]
[354838683,1740731437066,-400.973848,0.005,2]
[354838684,1740731437076,-200.0,0.005,120]
[354838685,1740731437086,-999.87,0.0052739,120]
[354838686,1740731437095,-2287.0702426,0.00528,120]
[354838687,1740731437105,-7528.58,0.00528,120]
[354838688,1740731437115,-2050.0,0.0054,15]
[354838689,1740731437126,-523.0,0.00546789,120]
[354838690,1740731437135,-55555.0,0.00547645,120]
[354838691,1740731437145,-1563.91690556,0.00547845,8]
[354838692,1740731437155,-1101.64959731,0.005479,120]
[354838693,1740731437164,-518.55743689,0.00547945,120]
[354838694,1740731437174,-502.67629324,0.00547945,120]
[354838695,1740731437183,-500.0,0.00547945,120]
[354838696,1740731437193,-500.0,0.00547945,120]
[354838697,1740731437202,-504.49955688,0.00547945,120]
[354838698,1740731437212,-500.0,0.00547945,120]
[354838699,1740731437221,-500.0,0.00547945,120]
[354838700,1740731437231,-500.0,0.00547945,120]
[354838701,1740731437240,-500.0,0.00547945,120]
[354838702,1740731437250,-500.0,0.00547945,120]
[354838703,1740731437260,-500.99938343,0.00547945,120]
[354838704,1740731437270,-500.0,0.00547945,120]
[354838705,1740731437279,-500.0,0.00547945,120]
[354838706,1740731437288,-500.0,0.00547945,120]
[354838707,1740731437298,-500.0,0.00547945,120]
[354838708,1740731437308,-500.0,0.00547945,120]
[354838709,1740731437318,-547.54927748,0.00547945,120]
[354838710,1740731437327,-500.0,0.00547945,120]
[354838711,1740731437337,-500.0,0.00547945,120]
[354838712,1740731437347,-500.0,0.00547945,120]
[354838713,1740731437356,-500.0,0.00547945,120]
[354838714,1740731437366,-509.75080601,0.00547945,120]
[354838715,1740731437376,-497.30914848,0.00547945,120]
[354838716,1740731437385,-500.0,0.00547945,2]
[354838717,1740731437395,-500.0,0.00547945,120]
[354838718,1740731437405,-496.98073264,0.00547945,120]
[354838719,1740731437415,-500.0,0.00547945,120]
[354838720,1740731437425,-500.0,0.00547945,120]
[354838721,1740731437435,-500.0,0.00547945,15]
[354838722,1740731437446,-500.0,0.00547945,15]
[354838723,1740731437455,-505.0,0.00547945,15]
[354838724,1740731437464,-500.0,0.00547945,120]
[354838725,1740731437474,-500.0,0.00547945,120]
[354838726,1740731437483,-500.0,0.00547945,120]
[354838727,1740731437493,-500.0,0.00547945,120]
[354838728,1740731437504,-500.0,0.00547945,120]
[354838729,1740731437515,-500.0,0.00547945,120]
[354838730,1740731437525,-500.0,0.00547945,120]
[354838731,1740731437540,-500.0,0.00547945,7]
[354838732,1740731437550,-500.0,0.00547945,120]
[354838733,1740731437563,-176.37452914,0.00547945,120]
[354838734,1740731437574,-511.02588632,0.00547945,120]
[354838735,1740731437585,-500.0,0.00547945,120]
[354838736,1740731437596,-293.86479184,0.00547945,120]
[354838737,1740731437606,-833.35,0.00547945,120]
[354838738,1740731437615,-833.35,0.00547945,120]
[354838739,1740731437626,-833.35,0.00547945,120]
[354838740,1740731437636,-833.35,0.00547945,120]
[354838741,1740731437645,-833.35,0.00547945,120]
[354838742,1740731437654,-833.35,0.00547945,120]
[354838743,1740731437664,-833.35,0.00547945,120]
[354838744,1740731437676,-833.35,0.00547945,120]
[354838745,1740731437686,-833.35,0.00547945,120]
[354838746,1740731437695,-833.35,0.00547945,120]
[354838747,1740731437705,-833.35,0.00547945,120]
[354838748,1740731437714,-833.35,0.00547945,120]
[354838749,1740731437724,-833.35,0.00547945,120]
[354838750,1740731437734,-833.35,0.00547945,120]
[354838751,1740731437743,-833.35,0.00547945,120]
[354838752,1740731437753,-833.35,0.00547945,120]
[354838753,1740731437763,-833.35,0.00547945,120]
[354838754,1740731437773,-833.35,0.00547945,120]
[354838755,1740731437782,-833.35,0.00547945,120]
[354838756,1740731437792,-833.35,0.00547945,120]
[354838757,1740731437802,-833.35,0.00547945,120]
[354838758,1740731437814,-833.35,0.00547945,120]
[354838759,1740731437823,-833.35,0.00547945,120]
[354838760,1740731437832,-833.50391018,0.00547945,120]
[354838761,1740731437842,-500.0,0.00547945,120]
[354838762,1740731437852,-500.0,0.00547945,120]
[354838763,1740731437863,-500.0,0.00547945,120]
[354838764,1740731437873,-500.0,0.00547945,120]
[354838765,1740731437882,-500.0,0.00547945,120]
[354838766,1740731437892,-500.0,0.00547945,120]
[354838767,1740731437902,-500.0,0.00547945,120]
[354838768,1740731437912,-500.0,0.00547945,120]
[354838769,1740731437922,-500.0,0.00547945,120]
[354838770,1740731437932,-500.0,0.00547945,120]
[354838771,1740731437942,-255.42629064,0.00547945,120]
[354838772,1740731437951,-500.0,0.00547945,120]
[354838773,1740731437961,-500.0,0.00547945,120]
[354838774,1740731437970,-500.0,0.00547945,120]
[354838776,1740731437980,-503.8537764,0.00547945,120]
[354838778,1740731437990,-200.0,0.00547945,120]
[354838779,1740731437999,-500.0,0.00547945,120]
[354838781,1740731438009,-500.0,0.00547945,120]
[354838782,1740731438019,-500.0,0.00547945,120]
[354838784,1740731438028,-500.0,0.00547945,120]
[354838785,1740731438037,-500.0,0.00547945,120]
[354838786,1740731438047,-500.0,0.00547945,120]
[354838787,1740731438058,-500.0,0.00547945,120]
[354838788,1740731438067,-500.0,0.00547945,120]
[354838789,1740731438076,-500.0,0.00547945,120]
[354838790,1740731438086,-500.0,0.00547945,120]
[354838791,1740731438095,-500.0,0.00547945,120]
[354838792,1740731438105,-500.0,0.00547945,120]
[354838793,1740731438115,-500.0,0.00547945,120]
[354838794,1740731438124,-238.42683363,0.00547945,120]
[354838795,1740731438134,-1000.0,0.00547945,120]
[354838796,1740731438143,-500.0,0.00547945,120]
[354838797,1740731438153,-500.0,0.00547945,120]
[354838798,1740731438162,-500.0,0.00547945,120]
[354838799,1740731438171,-500.0,0.00547945,120]
[354838800,1740731438180,-500.0,0.00547945,120]
[354838801,1740731438189,-500.0,0.00547945,120]
[354838802,1740731438199,-500.0,0.00547945,120]
[354838803,1740731438209,-491.9274468,0.00547945,120]
[354838804,1740731438218,-500.0,0.00547945,120]
[354838805,1740731438227,-500.0,0.00547945,120]
[354838806,1740731438236,-500.0,0.00547945,20]
[354838807,1740731438246,-500.0,0.00547945,120]
[354838808,1740731438255,-500.0,0.00547945,120]
[354838809,1740731438263,-500.0,0.00547945,120]
[354838810,1740731438273,-500.0,0.00547945,120]
[354838811,1740731438283,-500.0,0.00547945,120]
[354838812,1740731438293,-500.0,0.00547945,120]
[354838813,1740731438302,-505.12151646,0.00547945,120]
[354838814,1740731438314,-339.16027832,0.00547945,120]
[354838815,1740731438323,-500.0,0.00547945,120]
[354838816,1740731438333,-1962.9,0.00547945,120]
[354838817,1740731438343,-454.41698451,0.00547945,120]
[354838819,1740731438388,-1508.48301549,0.00547945,120]
[354838821,1740731438398,-1196.39929937,0.00547945,120]
[354838823,1740731438410,-670.52937076,0.00547945,120]
[354838830,1740731438537,-1939.13,0.00547935,120]
[354838831,1740731438550,-95.97132987,0.00547945,120]
[354838832,1740731438563,-9.66611013,0.00547945,120]
[354838833,1740731438575,-1953.23388987,0.00547945,120]
[354838834,1740731438586,-1962.9,0.00547945,120]
[354838835,1740731438596,-500.0,0.00547945,120]
[354838836,1740731438606,-1962.9,0.00547945,120]
[354838837,1740731438616,-1962.9,0.00547945,120]
[354838838,1740731438627,-1962.9,0.00547945,120]
[354838839,1740731438637,-1962.9,0.00547945,120]
[354838840,1740731438646,-1962.9,0.00547945,120]
[354838841,1740731438656,-1962.9,0.00547945,120]
[354838842,1740731438666,-1962.9,0.00547945,120]
[354838843,1740731438676,-1962.9,0.00547945,120]
[354838844,1740731438685,-1962.9,0.00547945,120]
[354838845,1740731438695,-1962.9,0.00547945,120]
[354838846,1740731438704,-1962.9,0.00547945,120]
[354838847,1740731438714,-1962.9,0.00547945,120]
[354838848,1740731438723,-1962.9,0.00547945,120]
[354838849,1740731438733,-1962.9,0.00547945,120]
[354838850,1740731438743,-1962.9,0.00547945,120]
[354838851,1740731438753,-1962.9,0.00547945,120]
[354838852,1740731438763,-1962.9,0.00547945,120]
[354838853,1740731438773,-1962.9,0.00547945,120]